bitfinex/quotes_BTCUSD_20260127
["timestamp","ask_amount","ask_price","bid_price","bid_amount"]
[1769543965384,0.1999111,88493.0,88480.0,0.2687165]
[1769543965599,0.1999111,88493.0,88476.0,0.02265293]
[1769543965600,0.11287454,88492.0,88476.0,0.02265293]
[1769543965827,0.1999111,88493.0,88476.0,0.02265293]
[1769543966005,0.11287457,88492.0,88476.0,0.02265293]
[1769543966232,0.1999111,88493.0,88476.0,0.20377338]
[1769543966382,0.11287625,88492.0,88480.0,0.2687165]
[1769543966583,0.00013927,88494.0,88480.0,0.2687165]
[1769543966800,0.11287585,88493.0,88480.0,0.2687165]
[1769543966987,0.11287585,88492.0,88480.0,0.2687165]
[1769543967184,0.00013927,88494.0,88480.0,0.2687165]
[1769543967388,0.02305759,88494.0,88480.0,0.2687165]
[1769543967607,0.02291832,88492.0,88476.0,0.20377338]
[1769543967821,0.02291832,88492.0,88471.0,0.18112045]
[1769543968034,0.31545873,88491.0,88471.0,0.20418114]
[1769543968239,0.31545873,88491.0,88470.0,0.2687165]
[1769543968240,0.20258171,88491.0,88473.0,0.18112045]
[1769543969549,0.04252563,88491.0,88473.0,0.18112045]
[1769543974774,0.01960731,88491.0,88473.0,0.18112045]
[1769543975723,0.02291832,88490.0,88473.0,0.18112045]
[1769543976127,0.17966339,88489.0,88473.0,0.18112045]
[1769543976272,0.2361679,88489.0,88473.0,0.18112045]
[1769543976491,0.17966339,88482.0,88455.0,0.18112045]
[1769543976786,0.2687165,88483.0,88460.0,0.2687165]
[1769543976787,0.02291832,88477.0,88460.0,0.2687165]
[1769543976986,0.2687165,88490.0,88454.0,0.13936499]
[1769543976987,0.02291832,88475.0,88454.0,0.13936499]
[1769543977211,0.02291832,88470.0,88454.0,0.1163043]
[1769543977412,0.17966339,88471.0,88454.0,0.1163043]
[1769543977413,0.17966339,88467.0,88454.0,0.1163043]
[1769543977618,0.02291832,88466.0,88454.0,0.0001843]
[1769543978616,0.02291832,88466.0,88454.0,7.354e-05]
[1769543981096,0.02291832,88466.0,88454.0,0.18119399]
[1769543986683,0.02291832,88466.0,88454.0,7.354e-05]
[1769543989299,0.02291832,88471.0,88454.0,0.18119399]
[1769543989621,0.11289331,88470.0,88454.0,0.17987455]
[1769543989794,0.02291832,88471.0,88454.0,0.17591617]
[1769543989968,0.11289331,88470.0,88454.0,0.17591617]
[1769543990170,0.02291832,88471.0,88454.0,0.17591617]
[1769543990483,0.13581163,88470.0,88454.0,0.17591617]
[1769543990690,0.02291832,88470.0,88454.0,0.17591617]
[1769543992175,0.02291832,88470.0,88460.0,0.2687165]
[1769543992378,0.02291832,88470.0,88460.0,0.26701189]
[1769543992629,0.17966339,88476.0,88460.0,0.26701189]
[1769543992630,0.02291832,88475.0,88460.0,0.2687165]
[1769543992778,0.11287299,88474.0,88460.0,0.2687165]
[1769543992972,0.02291832,88475.0,88454.0,0.19897686]
[1769543993196,0.11287295,88474.0,88460.0,0.26813406]
[1769543993546,0.11287668,88473.0,88454.0,0.19897686]
[1769543993745,0.02291832,88475.0,88460.0,0.2687165]
[1769543993950,0.11287668,88474.0,88460.0,0.2687165]
[1769543994099,0.02291832,88475.0,88460.0,0.2687165]
[1769543994312,0.11287664,88474.0,88460.0,0.2687165]
[1769543994513,0.11287664,88473.0,88460.0,0.2687165]
[1769543994714,0.02291832,88475.0,88460.0,0.2687165]
[1769543994914,0.11288247,88474.0,88460.0,0.2687165]
[1769543995148,0.11288247,88473.0,88460.0,0.2687165]
[1769543995332,0.02345428,88488.0,88465.0,0.02382256]
[1769543995670,0.00032353,88481.0,88469.0,0.2687165]
[1769543996239,0.00032353,88481.0,88469.0,0.44673547]
[1769543996441,0.00032353,88481.0,88469.0,0.17538201]
[1769543996641,0.00032353,88481.0,88470.0,0.26344138]
[1769543996851,0.00032353,88481.0,88470.0,0.2687165]
[1769543997244,0.00032353,88481.0,88472.0,0.02118433]
[1769543997505,0.00032353,88481.0,88473.0,0.1692861]
[1769543998329,0.00032353,88481.0,88470.0,0.2687165]
[1769543999970,0.00032353,88481.0,88470.0,0.26608007]
[1769544000131,0.00032353,88481.0,88468.0,0.17801897]
[1769544000337,0.02345428,88479.0,88462.0,0.11616]
[1769544000638,0.16981454,88476.0,88462.0,0.11616]
[1769544000854,0.02345428,88475.0,88462.0,0.11016]
[1769544001058,0.19326882,88471.0,88450.0,0.47055803]
[1769544001273,0.02345428,88470.0,88451.0,0.17801897]
[1769544001484,0.02345428,88470.0,88451.0,0.20184153]
[1769544001720,0.02345428,88470.0,88442.0,0.11616]
[1769544001721,0.02345428,88466.0,88444.0,0.20184153]
[1769544001936,0.2687165,88470.0,88432.0,0.0001843]
[1769544001937,0.01679,88451.0,88432.0,0.0001843]
[1769544002109,0.03615365,88469.0,88432.0,0.0001843]
[1769544002110,0.09033845,88465.0,88442.0,0.02382256]
[1769544002420,0.09033845,88465.0,88432.0,0.0001843]
[1769544002421,0.02345428,88459.0,88432.0,0.0001843]
[1769544002593,0.02345428,88449.0,88432.0,0.0001843]
[1769544002804,0.02345428,88445.0,88432.0,0.0001843]
[1769544003003,0.16981454,88455.0,88433.0,0.17801897]
[1769544003210,0.02345428,88452.0,88433.0,0.17553258]
[1769544003410,0.09046385,88461.0,88441.0,0.17801897]
[1769544003622,0.0001254,88461.0,88443.0,0.20184153]
[1769544003931,0.02345428,88458.0,88433.0,0.17801897]
[1769544004091,0.02345428,88456.0,88433.0,0.17801897]
[1769544004297,0.05664788,88461.0,88441.0,0.17575699]
[1769544004497,0.05652331,88460.0,88441.0,0.19957955]
[1769544004698,0.0001254,88461.0,88440.0,0.2687165]
[1769544004898,0.0001254,88461.0,88444.0,0.02382256]
[1769544005107,0.0001254,88461.0,88451.0,0.17801897]
[1769544005525,0.0001254,88461.0,88432.0,0.0004648]
[1769544005526,0.0001995,88473.0,88460.0,0.2687165]
[1769544005709,0.0001995,88473.0,88464.0,0.02382256]
[1769544005911,0.02345428,88482.0,88465.0,0.17801897]
[1769544006229,0.02345428,88482.0,88468.0,0.17801897]
[1769544006631,0.02345428,88482.0,88468.0,0.17611671]
[1769544006831,0.02359351,88482.0,88468.0,0.17611671]
[1769544007358,0.1129408,88481.0,88468.0,0.17611671]
[1769544007557,0.1129408,88480.0,88468.0,0.19993927]
[1769544007799,0.1129408,88479.0,88468.0,0.19993927]
[1769544007976,0.1129408,88478.0,88468.0,0.19993927]
[1769544008193,0.1129408,88477.0,88469.0,0.26883535]
[1769544008334,0.00013923,88482.0,88468.0,0.19993927]
[1769544008542,0.02345428,88478.0,88452.0,0.17801897]
[1769544008743,0.02345428,88476.0,88452.0,0.17801897]
[1769544009083,0.02345428,88475.0,88456.0,0.17801897]
[1769544009382,0.26883535,88470.0,88454.0,0.02382256]
[1769544009686,0.02345428,88469.0,88450.0,0.44685432]
[1769544009885,0.02313459,88469.0,88450.0,0.44685432]
[1769544010268,0.02313459,88469.0,88448.0,0.02382256]
[1769544010269,0.05651777,88468.0,88448.0,0.20184153]
[1769544010435,0.02345428,88467.0,88450.0,0.26883535]
[1769544010667,0.02345428,88465.0,88450.0,0.26883535]
[1769544011605,0.26883535,88470.0,88443.0,0.02402206]
[1769544011850,0.02345428,88456.0,88443.0,0.0001995]
[1769544012096,0.19326882,88455.0,88443.0,0.0001995]
[1769544012206,0.23365845,88476.0,88446.0,0.16018734]
[1769544012417,0.05651568,88472.0,88450.0,0.44685432]
[1769544012612,0.02345428,88470.0,88451.0,0.17801897]
[1769544012834,0.02345428,88468.0,88451.0,0.17801897]
[1769544013036,0.02345428,88472.0,88451.0,0.17801897]
[1769544013255,0.14332,88476.0,88451.0,0.17801897]
[1769544013256,0.02345428,88470.0,88451.0,0.17801897]
[1769544013736,0.02345428,88470.0,88451.0,0.16852741]
[1769544013930,0.02345428,88470.0,88451.0,0.15903422]
[1769544014266,0.11294223,88469.0,88451.0,0.14384671]
[1769544014484,0.02345428,88468.0,88451.0,0.17801897]
[1769544018308,0.15010896,88498.0,88450.0,0.26883535]
[1769544018505,0.15010896,88498.0,88471.0,0.17801897]
[1769544018506,0.11292093,88484.0,88471.0,0.17801897]
[1769544018768,0.02345428,88496.0,88474.0,0.02192432]
[1769544018982,0.02345428,88496.0,88475.0,0.17233279]
[1769544019438,0.02345428,88484.0,88460.0,0.26883535]
[1769544019648,0.4948496,88490.0,88450.0,0.0001392]
[1769544019649,0.01651238,88475.0,88452.0,0.02382256]
[1769544019826,0.01651238,88475.0,88450.0,0.0001392]
[1769544019827,0.01651238,88475.0,88460.0,0.26883535]
[1769544020166,0.01651238,88475.0,88460.0,0.44685432]
[1769544021276,0.01651238,88475.0,88460.0,0.17801897]
[1769544021490,0.01651238,88475.0,88450.0,0.0001392]
[1769544021491,0.02345428,88468.0,88450.0,0.0001392]
[1769544021680,0.16981454,88465.0,88450.0,0.0001392]
[1769544021899,0.16981454,88474.0,88452.0,0.02382256]
[1769544022087,0.16981454,88474.0,88455.0,0.17801897]
[1769544022275,0.16981454,88474.0,88457.0,0.1761211]
[1769544022424,0.19326882,88474.0,88457.0,0.1761211]
[1769544022626,0.02345428,88473.0,88450.0,0.0001392]
[1769544022968,0.02345428,88470.0,88451.0,0.17801897]
[1769544023144,0.02345428,88470.0,88451.0,0.17928776]
[1769544023365,0.02345428,88470.0,88452.0,0.02396744]
[1769544023608,0.02345428,88470.0,88453.0,0.17928776]
[1769544026450,0.023637,88479.0,88460.0,0.26883535]
[1769544026710,0.16727035,88479.0,88459.0,0.17158848]
[1769544026896,0.023637,88478.0,88461.0,0.19458539]
[1769544027973,0.05650767,88484.0,88464.0,0.02299691]
[1769544028145,0.11291982,88483.0,88465.0,0.19458539]
[1769544028348,0.023637,88481.0,88460.0,0.26883535]
[1769544028553,0.0001995,88485.0,88460.0,0.26883535]
[1769544028554,0.16727035,88478.0,88460.0,0.26883535]
[1769544028772,0.023637,88476.0,88460.0,0.26883535]
[1769544030114,0.023637,88476.0,88458.0,0.17158848]
[1769544031767,0.05230242,88475.0,88458.0,0.17158848]
[1769544032974,0.023637,88473.0,88450.0,0.0001392]
[1769544033151,0.16727035,88467.0,88450.0,0.0001392]
[1769544033352,0.16727035,88467.0,88450.0,0.17172768]
[1769544033577,0.16727035,88467.0,88450.0,0.44056303]
[1769544033783,0.19090735,88467.0,88450.0,0.44056303]
[1769544033939,0.19090735,88467.0,88450.0,0.0001392]
[1769544034146,0.16727035,88465.0,88450.0,0.0001392]
[1769544034390,0.023637,88464.0,88450.0,0.0001392]
[1769544034596,0.16727035,88463.0,88450.0,0.0001392]
[1769544034771,0.023637,88462.0,88450.0,0.0001392]
[1769544034970,0.023637,88462.0,88444.0,0.17158848]
[1769544035358,0.023637,88462.0,88444.0,0.19458539]
[1769544035720,0.023637,88462.0,88444.0,0.17158848]
[1769544035862,0.023637,88462.0,88446.0,0.17158848]
[1769544036873,0.36168494,88479.0,88443.0,0.0001995]
[1769544036874,0.16727035,88468.0,88451.0,0.17158848]
[1769544037165,0.11309043,88467.0,88451.0,0.19458539]
[1769544037365,0.11309043,88466.0,88451.0,0.19458539]
[1769544037571,0.11309043,88465.0,88451.0,0.19458539]
[1769544037883,0.16740963,88468.0,88451.0,0.19458539]
[1769544038083,0.11309491,88467.0,88451.0,0.19458539]
[1769544038297,0.11309491,88466.0,88451.0,0.19458539]
[1769544038452,0.11309491,88465.0,88451.0,0.19458539]
[1769544038664,0.16740963,88468.0,88451.0,0.19458539]
[1769544038923,0.1036432,88468.0,88451.0,0.19458539]
[1769544039214,0.1036432,88468.0,88451.0,0.18681429]
[1769544039359,0.1036432,88468.0,88451.0,0.14216147]
[1769544039564,0.1036432,88468.0,88451.0,0.13077109]
[1769544039764,0.1036432,88468.0,88451.0,0.11748067]
[1769544040002,0.00013928,88468.0,88452.0,0.01919903]
[1769544040180,0.00013928,88468.0,88458.0,0.26883535]
[1769544040492,0.00013928,88468.0,88461.0,0.19458539]
[1769544041333,0.11616,88480.0,88461.0,0.19458539]
[1769544041506,0.023637,88481.0,88461.0,0.19458539]
[1769544041712,0.0565102,88480.0,88461.0,0.19458539]
[1769544042019,0.11616,88483.0,88463.0,0.17158848]
[1769544042224,0.11616,88483.0,88465.0,0.17158848]
[1769544042423,0.11616,88483.0,88465.0,0.17062329]
[1769544042602,0.023637,88482.0,88465.0,0.16821014]
[1769544042807,0.023637,88481.0,88465.0,0.16627942]
[1769544043003,0.023637,88481.0,88465.0,0.16434852]
[1769544043194,0.023637,88481.0,88465.0,0.16193467]
[1769544043393,0.023637,88481.0,88465.0,0.15952057]
[1769544043595,0.023637,88481.0,88465.0,0.15662326]
[1769544043800,0.023637,88481.0,88465.0,0.15420856]
[1769544044005,0.023637,88481.0,88465.0,0.15131058]
[1769544044206,0.023637,88481.0,88465.0,0.14937836]
[1769544044419,0.023637,88481.0,88465.0,0.14455309]
[1769544044642,0.023637,88481.0,88465.0,0.14117117]
[1769544044848,0.023637,88481.0,88465.0,0.13827194]
[1769544045051,0.023637,88481.0,88465.0,0.13537235]
[1769544045226,0.023637,88481.0,88465.0,0.13295572]
[1769544045446,0.023637,88481.0,88465.0,0.13005541]
[1769544045647,0.023637,88481.0,88465.0,0.12715474]
[1769544045849,0.023637,88481.0,88465.0,0.12425366]
[1769544046122,0.023637,88481.0,88465.0,0.1223194]
[1769544046292,0.19090735,88481.0,88465.0,0.11235075]
[1769544046438,0.16727035,88481.0,88464.0,0.02299691]
[1769544046636,0.023637,88480.0,88464.0,0.02299691]
[1769544047480,0.08014722,88480.0,88464.0,0.02299691]
[1769544047929,0.0565115,88478.0,88464.0,0.02299691]
[1769544048437,0.023637,88480.0,88464.0,0.02299691]
[1769544048659,0.023637,88479.0,88463.0,0.00013928]
[1769544048856,0.19090735,88478.0,88463.0,0.00013928]
[1769544049427,0.05651401,88474.0,88463.0,0.00013928]
[1769544049628,0.05651356,88475.0,88463.0,0.00013928]
[1769544050189,0.023637,88475.0,88463.0,0.00013928]
[1769544050352,0.08015053,88475.0,88463.0,0.00013928]
[1769544050794,0.023637,88475.0,88463.0,0.00013928]
[1769544050966,0.11317769,88474.0,88463.0,0.00013928]
[1769544051178,0.11317769,88473.0,88463.0,0.00013928]
[1769544051368,0.11317769,88472.0,88463.0,0.00013928]
[1769544051568,0.11317769,88471.0,88459.0,0.17158848]
[1769544051769,0.11317769,88470.0,88459.0,0.17158848]
[1769544053340,0.11317769,88470.0,88454.0,0.02299691]
[1769544053578,0.16727035,88467.0,88450.0,0.26883535]
[1769544053762,0.19090735,88467.0,88450.0,0.26883535]
[1769544053959,0.19090735,88467.0,88448.0,0.17158848]
[1769544054165,0.00013928,88471.0,88451.0,0.17158848]
[1769544054494,0.11319167,88470.0,88453.0,0.17060236]
[1769544054824,0.00013928,88471.0,88457.0,0.17060236]
[1769544054825,0.11319167,88469.0,88457.0,0.17060236]
[1769544055037,0.11319167,88468.0,88457.0,0.17060236]
[1769544055242,0.00013928,88471.0,88457.0,0.17060236]
[1769544055451,0.11318967,88470.0,88451.0,0.19538918]
[1769544055629,0.11318967,88469.0,88451.0,0.19538918]
[1769544056026,0.02261844,88470.0,88443.0,0.19558868]
[1769544056027,0.17387609,88467.0,88443.0,0.19558868]
[1769544056194,0.26883535,88470.0,88443.0,0.19558868]
[1769544056195,0.02261844,88464.0,88450.0,0.26883535]
[1769544056396,0.17387609,88463.0,88444.0,0.02478682]
[1769544056624,0.17387609,88463.0,88444.0,0.19538918]
[1769544056777,0.17387609,88463.0,88444.0,0.17060236]
[1769544056977,0.02261844,88462.0,88444.0,0.17060236]
[1769544058149,0.01772424,88490.0,88443.0,0.0001995]
[1769544058150,0.00013928,88471.0,88451.0,0.17060236]
[1769544058354,0.11319098,88470.0,88451.0,0.17060236]
[1769544058655,0.11319098,88469.0,88453.0,0.17060236]
[1769544058827,0.00013928,88471.0,88453.0,0.17060236]
[1769544058828,0.11319098,88468.0,88453.0,0.17060236]
[1769544059086,0.11319098,88467.0,88453.0,0.17060236]
[1769544059268,0.11319098,88466.0,88453.0,0.17060236]
[1769544059474,0.02275772,88471.0,88453.0,0.17060236]
[1769544059679,0.11319061,88470.0,88453.0,0.17060236]
[1769544062180,0.17387609,88482.0,88460.0,0.26883535]
[1769544062434,0.0001995,88485.0,88470.0,0.43943771]
[1769544062644,0.0001995,88485.0,88470.0,0.43374788]
[1769544062849,0.0001995,88485.0,88470.0,0.42426668]
[1769544063092,0.0001995,88485.0,88470.0,0.16301414]
[1769544063556,0.23058269,88485.0,88467.0,0.02478682]
[1769544063767,0.0001995,88485.0,88467.0,0.02478682]
[1769544063973,0.17387609,88482.0,88467.0,0.02478682]
[1769544066057,0.17387609,88482.0,88467.0,0.01719617]
[1769544066259,0.17387609,88482.0,88467.0,0.00770862]
[1769544066468,0.17387609,88482.0,88465.0,0.17060236]
[1769544066874,0.11616,88483.0,88465.0,0.19538918]
[1769544067309,0.02273594,88494.0,88472.0,0.17060236]
[1769544067513,0.11616,88493.0,88476.0,0.17060236]
[1769544067952,0.0001175,88494.0,88483.0,0.02478682]
[1769544068156,0.0001175,88494.0,88480.0,0.26878833]
[1769544068157,0.0001175,88494.0,88484.0,0.19538918]
[1769544068361,0.0001175,88494.0,88480.0,0.26878833]
[1769544068804,0.0001175,88494.0,88479.0,0.02478682]
[1769544069439,0.02273594,88494.0,88478.0,0.17060236]
[1769544073469,0.0001175,88494.0,88460.0,0.00034558]
[1769544073670,0.02278034,88503.0,88484.0,0.26878833]
[1769544073889,0.0001619,88503.0,88493.0,0.17060236]
[1769544074093,0.11289385,88502.0,88495.0,0.17060236]
[1769544074334,0.0001619,88503.0,88495.0,0.17060236]
[1769544075202,0.00021965,88503.0,88495.0,0.17060236]
[1769544076487,0.00021965,88503.0,88490.0,0.26878833]
[1769544076931,0.00021965,88503.0,88491.0,0.17060236]
[1769544081348,0.00021965,88503.0,88492.0,0.02478682]
[1769544081586,0.00021965,88503.0,88493.0,0.17060236]
[1769544082105,0.00021965,88503.0,88495.0,0.19538918]
[1769544083279,0.0001619,88513.0,88491.0,0.17533763]
[1769544083479,0.0001619,88513.0,88500.0,0.26878833]
[1769544083950,0.09020072,88526.0,88500.0,0.26878833]
[1769544083951,0.09060072,88527.0,88502.0,0.0230453]
[1769544084129,0.09060072,88527.0,88500.0,0.53757666]
[1769544084130,0.0004,88527.0,88511.0,0.17533763]
[1769544084333,0.0004,88527.0,88512.0,0.19838293]
[1769544085304,0.0004,88527.0,88512.0,0.0230453]
[1769544087176,0.0004,88527.0,88512.0,0.01355707]
[1769544087373,0.0004,88527.0,88512.0,0.00596859]
[1769544087622,0.0004,88527.0,88510.0,0.26878833]
[1769544088440,0.0004,88527.0,88510.0,0.44298741]
[1769544091826,0.0004,88527.0,88510.0,0.26878833]
[1769544092024,0.0004,88527.0,88511.0,0.17419908]
[1769544092246,0.0004,88527.0,88511.0,0.16601566]
[1769544092450,0.0004,88529.0,88518.0,0.26878833]
[1769544093080,0.0004,88529.0,88517.0,0.17419908]
[1769544094106,0.0006956,88529.0,88517.0,0.17419908]
[1769544094828,0.0006956,88529.0,88513.0,0.0230473]
[1769544095205,0.18440209,88529.0,88513.0,0.0230473]
[1769544098698,0.16058022,88529.0,88510.0,0.44298741]
[1769544098931,0.2926102,88520.0,88490.0,0.26878833]
[1769544099046,0.01651238,88510.0,88494.0,0.0230473]
[1769544099244,0.01651238,88510.0,88500.0,0.26878833]
[1769544099499,0.18370649,88519.0,88500.0,0.44298741]
[1769544100080,0.02382187,88518.0,88500.0,0.44298741]
[1769544100300,0.15988462,88517.0,88500.0,0.44298741]
[1769544100682,8.98e-05,88519.0,88500.0,0.44298741]
[1769544100683,0.02382187,88516.0,88500.0,0.44298741]
[1769544101162,0.02391167,88516.0,88500.0,0.44298741]
[1769544101532,0.02391167,88516.0,88500.0,0.26878833]
[1769544101758,0.02391167,88516.0,88501.0,0.17419908]
[1769544104433,0.02391167,88516.0,88500.0,0.26878833]
[1769544104434,0.01651238,88501.0,88490.0,5.775e-05]
[1769544104642,0.15988462,88498.0,88473.0,0.17419908]
[1769544104844,0.02382187,88482.0,88472.0,0.0002058]
[1769544105116,0.18370649,88479.0,88472.0,0.0002058]
[1769544105346,0.18370649,88479.0,88461.0,0.17419908]
[1769544105575,0.15988462,88484.0,88463.0,0.17419908]
[1769544105751,0.02382187,88488.0,88470.0,0.0230473]
[1769544105930,0.02382187,88488.0,88472.0,0.0230473]
[1769544106132,0.02382187,88488.0,88473.0,0.15449811]
[1769544106331,0.02382187,88488.0,88473.0,0.13873449]
[1769544106557,0.02382187,88488.0,88473.0,0.12720093]
[1769544106748,0.02382187,88488.0,88473.0,0.11748891]
[1769544106935,0.02382187,88488.0,88473.0,0.10130161]
[1769544107138,0.02382187,88488.0,88473.0,0.08511356]
[1769544107337,0.02382187,88488.0,88473.0,0.07257083]
[1769544107566,0.02382187,88488.0,88473.0,0.07199498]
[1769544107974,0.26878833,88500.0,88479.0,0.17419908]
[1769544107975,0.02382187,88497.0,88479.0,0.17419908]
[1769544108188,0.0002058,88503.0,88481.0,0.19724638]
[1769544108189,0.05649639,88502.0,88481.0,0.19724638]
[1769544108404,0.15988462,88497.0,88481.0,0.19724638]
[1769544108620,0.02382187,88496.0,88478.0,0.26878833]
[1769544109295,0.02382187,88496.0,88480.0,0.0230473]
[1769544109504,0.02382187,88496.0,88480.0,0.19724638]
[1769544111773,0.0002058,88503.0,88480.0,0.17419908]
[1769544111978,0.00364622,88504.0,88485.0,0.17419908]
[1769544112136,0.02382187,88505.0,88491.0,0.17419908]
[1769544112345,0.11612,88509.0,88491.0,0.16642961]
[1769544112346,0.15988462,88507.0,88491.0,0.16642961]
[1769544112568,0.18370649,88507.0,88490.0,0.26878833]
[1769544112940,0.18370649,88507.0,88489.0,0.17419908]
[1769544113342,0.18370649,88507.0,88490.0,0.26878833]
[1769544113743,0.18735271,88512.0,88492.0,0.19724638]
[1769544113962,0.18735271,88512.0,88492.0,0.17419908]
[1769544114177,0.18735271,88512.0,88493.0,0.0230473]
[1769544114748,0.16353084,88512.0,88493.0,0.0230473]
[1769544114949,0.18804749,88511.0,88493.0,0.0230473]
[1769544115475,0.19169371,88511.0,88493.0,0.0230473]
[1769544116435,0.0002058,88515.0,88502.0,0.02280676]
[1769544116655,0.0002058,88515.0,88507.0,0.02280676]
[1769544120835,0.0002058,88515.0,88508.0,0.16549343]
[1769544121046,0.0002058,88527.0,88510.0,0.02280676]
[1769544121254,0.0002058,88527.0,88515.0,0.02280676]
[1769544121584,0.0002058,88527.0,88518.0,0.01802286]
[1769544121804,0.0161074,88537.0,88518.0,0.01084626]
[1769544122005,0.0564701,88543.0,88500.0,0.26878833]
[1769544122006,0.16489101,88541.0,88522.0,0.02280676]
[1769544122196,0.01802526,88552.0,88529.0,0.16549343]
[1769544122197,0.16489101,88550.0,88529.0,0.16549343]
[1769544122337,0.0003117,88552.0,88540.0,0.26878833]
[1769544122536,0.01651238,88540.0,88499.0,0.16549343]
[1769544122880,0.16489101,88519.0,88502.0,0.02280676]
[1769544123046,0.02315648,88519.0,88502.0,0.02280676]
[1769544123243,0.16489101,88522.0,88503.0,0.16549343]
[1769544123479,0.16489101,88522.0,88504.0,0.02280676]
[1769544123687,0.04988068,88529.0,88504.0,0.02280676]
[1769544123860,0.02315648,88522.0,88504.0,0.02280676]
[1769544124040,0.16489101,88528.0,88504.0,0.02280676]
[1769544124388,0.43367934,88520.0,88504.0,0.02280676]
[1769544125366,0.16489101,88520.0,88504.0,0.02280676]
[1769544127004,0.02329579,88528.0,88506.0,0.02280676]
[1769544127201,0.02329579,88528.0,88508.0,0.02280676]
[1769544127386,0.02329579,88528.0,88498.0,0.00069932]
[1769544127387,0.02329579,88528.0,88510.0,0.01288775]
[1769544127596,0.16489101,88527.0,88509.0,0.16233248]
[1769544127841,0.16489101,88527.0,88509.0,0.15532196]
[1769544128036,0.16489101,88527.0,88507.0,0.02280676]
[1769544128246,0.16489101,88525.0,88507.0,0.02280676]
[1769544128406,0.16489101,88525.0,88507.0,0.18830019]
[1769544128612,0.18804749,88525.0,88507.0,0.18830019]
[1769544128812,0.05648025,88527.0,88507.0,0.16549343]
[1769544129016,0.05661874,88528.0,88510.0,0.02280676]
[1769544129017,0.00013931,88528.0,88510.0,0.02280676]
[1769544129220,0.00013931,88528.0,88511.0,0.16549343]
[1769544130666,0.00013931,88528.0,88511.0,0.18830019]
[1769544130859,0.00013931,88528.0,88512.0,0.02280676]
[1769544131210,0.00013931,88528.0,88513.0,0.16549343]
[1769544132598,0.00013931,88528.0,88513.0,0.18830019]
[1769544132821,0.16489101,88544.0,88520.0,0.18830019]
[1769544132981,0.02315648,88542.0,88521.0,0.02280676]
[1769544133190,0.11262382,88541.0,88523.0,0.18830019]
[1769544133386,0.02315648,88542.0,88523.0,0.1691389]
[1769544133587,0.00046426,88544.0,88511.0,0.00049157]
[1769544133588,0.16489101,88540.0,88518.0,0.02280676]
[1769544133793,0.02315648,88537.0,88501.0,0.16549343]
[1769544133996,0.16489101,88534.0,88504.0,0.02280676]
[1769544134196,0.16489101,88534.0,88502.0,0.11608]
[1769544134197,0.02315648,88533.0,88505.0,0.16549343]
[1769544134414,0.02315648,88533.0,88508.0,0.02280676]
[1769544134613,0.02315648,88533.0,88511.0,0.16549343]
[1769544134815,0.02315648,88533.0,88513.0,0.16549343]
[1769544135190,0.02315648,88533.0,88502.0,0.11608]
[1769544135191,0.02362074,88544.0,88514.0,0.02280676]
[1769544135415,0.16489101,88542.0,88517.0,0.16549343]
[1769544135587,0.02315648,88539.0,88518.0,0.18830019]
[1769544135789,0.02315648,88537.0,88518.0,0.18830019]
[1769544137403,0.02315648,88536.0,88518.0,0.18830019]
[1769544137949,0.05647507,88535.0,88518.0,0.18830019]
[1769544138155,0.02315648,88536.0,88510.0,0.16549343]
[1769544138363,0.02315648,88527.0,88510.0,0.16549343]
[1769544138568,0.02315648,88526.0,88510.0,0.16549343]
[1769544145035,0.1136503,88535.0,88514.0,0.17626855]
[1769544145401,0.1136503,88535.0,88516.0,0.17626855]
[1769544145402,0.11289724,88534.0,88516.0,0.17626855]
[1769544145600,0.11289724,88533.0,88516.0,0.17626855]
[1769544145813,0.11289724,88532.0,88516.0,0.17626855]
[1769544146042,0.11289724,88531.0,88520.0,0.17626855]
[1769544146273,0.11289724,88530.0,88521.0,0.17243665]
[1769544146487,0.02351565,88542.0,88522.0,0.02471356]
[1769544146720,0.02351565,88542.0,88525.0,0.17626855]
[1769544146914,0.02351565,88542.0,88525.0,0.20098211]
[1769544147517,0.02351565,88540.0,88525.0,0.17626855]
[1769544148215,0.02351565,88540.0,88520.0,0.02471356]
[1769544148361,0.18887632,88540.0,88520.0,0.20098211]
[1769544148900,0.02351565,88540.0,88522.0,0.20098211]
[1769544149549,0.00046426,88544.0,88523.0,0.02471356]
[1769544149764,0.00046426,88544.0,88526.0,0.17626855]
[1769544150069,0.00046426,88544.0,88531.0,0.02471356]
[1769544150246,0.02382735,88552.0,88534.0,0.17626855]
[1769544150247,0.0003117,88552.0,88534.0,0.17626855]
[1769544150396,0.0003117,88552.0,88537.0,0.02471356]
[1769544150643,0.0003117,88552.0,88541.0,0.02471356]
[1769544150843,0.0003117,88552.0,88542.0,0.17616855]
[1769544152093,0.04988068,88547.0,88522.0,0.0030079]
[1769544152258,0.02351565,88534.0,88512.0,0.17626855]
[1769544152456,0.02351565,88534.0,88499.0,0.11608]
[1769544152457,0.04988068,88533.0,88516.0,0.02471356]
[1769544152740,0.18887632,88540.0,88520.0,0.20098211]
[1769544153166,0.04988068,88533.0,88520.0,0.17626855]
[1769544153381,0.18887632,88540.0,88522.0,0.20098211]
[1769544153553,0.02351565,88540.0,88522.0,0.20098211]
[1769544153763,0.02351565,88545.0,88525.0,0.02471356]
[1769544153956,0.05034494,88547.0,88528.0,0.17626855]
[1769544154183,0.05034494,88547.0,88530.0,0.20098211]
[1769544154505,0.10681251,88547.0,88530.0,0.20098211]
[1769544154711,0.16536067,88541.0,88514.0,0.17626855]
[1769544154906,0.16536067,88541.0,88518.0,0.02471356]
[1769544155124,0.16536067,88541.0,88500.0,0.33573805]
[1769544155125,0.16536067,88541.0,88522.0,0.02471356]
[1769544155345,0.16536067,88541.0,88523.0,0.1774001]
[1769544155562,0.02351565,88542.0,88523.0,0.1774001]
[1769544155764,0.02351565,88542.0,88525.0,0.20098211]
[1769544155967,0.04988068,88546.0,88527.0,0.17626855]
[1769544156172,0.04988068,88545.0,88530.0,0.02471356]
[1769544156493,0.04988068,88545.0,88532.0,0.02471356]
[1769544156990,0.01734961,88553.0,88534.0,0.02471356]
[1769544157134,0.0004,88558.0,88530.0,0.00046426]
[1769544157135,0.0004,88558.0,88538.0,0.02471356]
[1769544157336,0.0004,88558.0,88541.0,0.17626855]
[1769544157560,0.0004,88558.0,88542.0,0.02331056]
[1769544157795,0.0004,88558.0,88542.0,0.02307671]
[1769544158354,0.1128876,88557.0,88542.0,0.02307671]
[1769544158558,0.1128876,88556.0,88543.0,0.02471356]
[1769544158759,0.1128876,88555.0,88543.0,0.02471356]
[1769544158971,0.0004,88558.0,88543.0,0.02471356]
[1769544158972,0.1128876,88554.0,88543.0,0.02471356]
[1769544159172,0.22028875,88575.0,88543.0,0.02471356]
[1769544159373,0.11286828,88563.0,88543.0,0.02471356]
[1769544159597,0.11286828,88562.0,88545.0,0.02471356]
[1769544159846,0.11286828,88561.0,88546.0,0.02471356]
[1769544160047,0.16536067,88563.0,88546.0,0.02471356]
[1769544160048,0.11286828,88560.0,88546.0,0.01590202]
[1769544160332,0.11286828,88559.0,88545.0,0.17626855]
[1769544160540,0.11286828,88558.0,88545.0,0.17626855]
[1769544160760,0.11286828,88557.0,88545.0,0.17626855]